lending/lending_fUSD_20250808
["ID","MTS","AMOUNT","RATE_DAILY","PERIOD"]
[377938047,1754616639807,-952.47687904,0.00019,2]
[377938065,1754616639968,-1086.99022905,0.00019,2]
[377938470,1754616642833,-3044.29599687,0.00019,2]
[377938479,1754616642845,-560.79306628,0.00019,2]
[377938672,1754616645879,-35606.14426532,0.00019,2]
[377938673,1754616645891,-116859.68273349,0.00019,2]
[377938674,1754616646072,-3508.13053961,0.00019,2]
[377938675,1754616646084,-4323.51176585,0.00019,2]
[377938701,1754616996379,400.0,0.00027397,120]
[377938702,1754616996625,400.0,0.00027397,120]
[377938703,1754616996885,400.0,0.00027397,120]
[377938704,1754616997113,400.0,0.00027397,120]
[377938705,1754616997382,400.0,0.00027397,120]
[377938706,1754616997661,400.0,0.00027397,120]
[377938707,1754616997910,400.0,0.00027397,120]
[377938708,1754616998149,400.0,0.00027397,120]
[377938709,1754616998510,400.0,0.00027397,120]
[377938710,1754616998728,400.0,0.00027397,120]
[377938711,1754616998994,400.0,0.00027397,120]
[377938712,1754617001301,400.0,0.00027397,120]
[377938713,1754617001892,400.0,0.00027397,120]
[377938714,1754617002783,400.0,0.00027397,120]
[377938715,1754617002852,400.0,0.00027397,120]
[377938716,1754617002935,400.0,0.00027397,120]
[377938717,1754617003204,400.0,0.00027397,120]
[377938718,1754617003462,355.8881657,0.00027397,120]
[377938719,1754617023610,500.0,0.0003011,120]
[377938720,1754617036525,500.0,0.0003011,120]
[377938721,1754617044781,500.0,0.0003011,120]
[377938722,1754617059378,500.0,0.0003011,120]
[377938723,1754617067760,1593.09,0.00017955,2]
[377938724,1754617071688,503.4,0.0003011,120]
[377938725,1754617086442,175.0,0.00017955,7]
[377938726,1754617113750,504.59,0.00017955,2]
[377938728,1754617182850,666.0,0.0001791,3]
[377938729,1754617195213,163.7464759,0.00017068,3]
[377938730,1754617246484,150.0,0.00017863,2]
[377938732,1754617271494,179.53,0.00017863,2]
[377938733,1754617271711,179.53,0.00017922,2]
[377938734,1754617271932,179.53,0.00017982,2]
[377938735,1754617272178,179.53,0.00018041,2]
[377938737,1754617310980,-250.18853976,0.00018307,2]
[377938738,1754617314201,-237.29207902,0.00018307,2]
[377938739,1754617315984,-504.07884097,0.00018307,2]
[377938742,1754617357379,288.05,0.0001789,2]
[377938743,1754617381346,-227.65271213,0.00018307,2]
[377938744,1754617384306,-160.81374268,0.00018307,2]
[377938745,1754617389538,-212.84354519,0.00018307,2]
[377938746,1754617391355,1000.0,0.00017889,2]
[377938747,1754617415595,153.76,0.00017889,2]
[377938748,1754617511666,150.0,0.00017088,2]
[377938749,1754617511708,150.0,0.00017721,2]
[377938750,1754617512987,159.65506062,0.00017088,2]
[377938751,1754617513025,159.83549638,0.00017088,2]
[377938752,1754617518693,152.55817708,0.00017088,2]
[377938753,1754617519024,154.86006197,0.00017088,2]
[377938754,1754617520101,175.74330918,0.00017088,2]
[377938755,1754617532138,150.0,0.00017088,2]
[377938756,1754617535066,150.0,0.00017088,2]
[377938757,1754617579735,200.0,0.00017855,2]
[377938758,1754617581425,-166.66666666,0.00018253,2]
[377938759,1754617581449,-216.11412886,0.0001828,4]
[377938760,1754617585185,-159.32920448,0.0001828,4]
[377938761,1754617586313,211.4,0.00017853,2]
[377938764,1754617592438,-172.2058,0.0001828,4]
[377938765,1754617593833,924.51995024,0.0001818,2]
[377938766,1754617594529,-190.32667628,0.0001828,4]
[377938767,1754617595266,309.39,0.00015068,2]
[377938768,1754617595498,309.39,0.00016657,2]
[377938769,1754617632079,200.0,0.00017841,2]
[377938770,1754617647190,200.0,0.000181,6]
[377938771,1754617659552,3167.76,0.00017792,2]
[377938773,1754617664708,257.54,0.00013699,2]
[377938774,1754617700219,-151.0,0.000182,6]
[377938775,1754617704314,-157.54,0.000182,6]
[377938776,1754617706552,-156.54,0.000182,6]
[377938777,1754617718025,157.91,0.00017755,2]
[377938778,1754617729810,-34.92,0.000182,6]
[377938779,1754617729837,-255.22413512,0.00018246,2]
[377938780,1754617735563,-54.16586488,0.00018246,2]
[377938781,1754617735587,-255.69,0.0001828,4]
[377938782,1754617738123,-6.33419038,0.0001828,4]
[377938783,1754617738147,-176.61400591,0.000183,6]
[377938784,1754617740666,-217.05180371,0.000183,6]
[377938785,1754617742412,572.4392884,0.0003013,120]
[377938786,1754617746657,-177.67,0.000183,6]
[377938787,1754617805835,-128.66419038,0.000183,6]
[377938788,1754617805859,-96.48434127,0.00018307,2]
[377938789,1754617808645,-179.8775,0.00018303,4]
[377938792,1754617831848,-820.1225,0.00018303,4]
[377938793,1754617831858,-397.39619898,0.00018307,2]
[377938794,1754617831869,-150.0,0.00018353,2]
[377938795,1754617831879,-185.4144723,0.00018399,2]
[377938796,1754617831889,-1000.0,0.000184,6]
[377938797,1754617831899,-241.3,0.00018499,2]
[377938798,1754617831909,-1081.2806438,0.000185,6]
[377938809,1754617837707,-118.7193562,0.000185,6]
[377938810,1754617837719,-200.0,0.000186,6]
[377938811,1754617837730,-1200.0,0.00018698,2]
[377938812,1754617837739,-1200.0,0.00018699,2]
[377938813,1754617837750,-20243.72605534,0.000187,2]
[377938814,1754617837760,-200.0,0.000187,6]
[377938815,1754617837769,-2500.0,0.00018715,3]
[377938816,1754617837779,-237.2254,0.0001872,2]
[377938817,1754617837788,-22033.50898865,0.00018721,2]
[377938818,1754617837798,-2500.0,0.00018724,3]
[377938819,1754617837808,-2500.0,0.00018733,3]
[377938820,1754617837818,-658.47139037,0.00018733,2]
[377938821,1754617837830,-22033.5089886,0.00018741,2]
[377938822,1754617837839,-2500.0,0.00018742,3]
[377938823,1754617837848,-2500.0,0.0001875,3]
[377938824,1754617837858,-658.47139036,0.00018752,2]
[377938825,1754617837869,-2500.0,0.00018759,3]
[377938826,1754617837878,-3293.85656622,0.00018761,2]
[377938827,1754617838017,-18739.65242238,0.00018761,2]
[377938828,1754617838028,-2500.0,0.00018768,3]
[377938829,1754617838038,-658.47139036,0.0001877,2]
[377938830,1754617838047,-2500.0,0.00018777,3]
[377938831,1754617838057,-22033.5089886,0.00018781,2]
[377938832,1754617838067,-2500.0,0.00018786,3]
[377938833,1754617838077,-658.47139036,0.00018789,2]
[377938834,1754617838086,-2500.0,0.00018794,3]
[377938835,1754617838096,-307.53,0.000188,2]
[377938836,1754617838106,-200.0,0.000188,6]
[377938837,1754617838115,-22033.5089886,0.00018801,2]
[377938838,1754617838124,-500.0,0.00018802,2]
[377938839,1754617838134,-500.0,0.00018802,2]
[377938840,1754617838144,-500.0,0.00018802,2]
[377938841,1754617838153,-489.62702762,0.00018802,2]
[377938842,1754617838163,-2500.0,0.00018803,3]
[377938843,1754617838172,-658.47139036,0.00018807,2]
[377938844,1754617838181,-154.13866061,0.00018809,2]
[377938845,1754617838191,-600.0,0.00018809,2]
[377938846,1754617838201,-600.0,0.00018809,2]
[377938847,1754617838212,-500.0,0.00018809,2]
[377938848,1754617838222,-600.0,0.00018809,2]
[377938849,1754617838231,-500.0,0.00018809,2]
[377938850,1754617838241,-600.0,0.00018809,2]
[377938851,1754617838251,-500.0,0.00018809,2]
[377938852,1754617838261,-500.0,0.00018809,2]
[377938853,1754617838271,-369.32124589,0.00018809,2]
[377938854,1754617838280,-500.0,0.00018809,2]
[377938855,1754617838289,-153.39079687,0.00018809,2]
[377938856,1754617838299,-500.0,0.00018809,2]
[377938857,1754617838308,-500.0,0.00018809,2]
[377938858,1754617838318,-500.0,0.00018809,2]
[377938859,1754617838328,-500.0,0.00018809,2]
[377938860,1754617838337,-500.0,0.00018809,2]
[377938861,1754617838347,-418.44419622,0.00018809,2]
[377938862,1754617838356,-151.0,0.00018809,2]
[377938863,1754617838366,-151.0,0.00018809,2]
[377938864,1754617838376,-151.0,0.00018809,2]
[377938865,1754617838387,-151.0,0.00018809,2]
[377938866,1754617838396,-151.0,0.00018809,2]
[377938867,1754617838406,-151.0,0.00018809,2]
[377938868,1754617838415,-151.0,0.00018809,2]
[377938869,1754617838424,-151.0,0.00018809,2]
[377938870,1754617838434,-151.0,0.00018809,2]
[377938871,1754617838443,-151.0,0.00018809,2]
[377938872,1754617838453,-151.0,0.00018809,2]
[377938873,1754617838462,-151.0,0.00018809,2]
[377938874,1754617838472,-6281.02282313,0.0001881,2]
[377938875,1754617838481,-1156.79,0.0001881,2]
[377938876,1754617838491,-2500.0,0.00018812,3]
[377938877,1754617838500,-4887.930996,0.00018819,2]
[377938878,1754617838509,-400.0,0.00018819,2]
[377938879,1754617838519,-570.75,0.00018819,2]
[377938880,1754617838528,-439.84,0.00018819,2]
[377938881,1754617838538,-796.12,0.00018819,2]
[377938882,1754617838547,-475.4,0.00018819,2]
[377938883,1754617838556,-706.61,0.00018819,2]
[377938884,1754617838567,-1177.16,0.00018819,2]
[377938885,1754617838576,-163.6048063,0.00018819,2]
[377938886,1754617838586,-537.31308793,0.00018819,2]
[377938887,1754617838598,-154.70601926,0.00018819,2]
[377938888,1754617838608,-133592.7098248,0.0001882,2]
[377938889,1754617838618,-22033.5089886,0.0001882,2]
[377938890,1754617838628,-2500.0,0.00018821,3]
[377938891,1754617838641,-658.47139036,0.00018826,2]
[377938892,1754617838651,-2500.0,0.0001883,3]
[377938893,1754617838660,-400.0,0.00018833,2]
[377938894,1754617838670,-690.06,0.00018833,2]
[377938895,1754617838679,-551.52,0.00018833,2]
[377938896,1754617838689,-400.0,0.00018833,2]
[377938897,1754617838698,-400.0,0.00018833,2]
[377938898,1754617838708,-648.87,0.00018833,2]
[377938899,1754617838717,-400.0,0.00018833,2]
[377938900,1754617838727,-400.0,0.00018833,2]
[377938901,1754617838737,-400.0,0.00018833,2]
[377938902,1754617838747,-428.27,0.00018833,2]
[377938903,1754617838756,-400.0,0.00018833,2]
[377938904,1754617838765,-501.15,0.00018833,2]
[377938905,1754617838776,-965.05,0.00018833,2]
[377938906,1754617838786,-400.0,0.00018833,2]
[377938907,1754617838795,-528.68,0.00018833,2]
[377938908,1754617838805,-400.0,0.00018833,2]
[377938909,1754617838814,-400.0,0.00018833,2]
[377938910,1754617838823,-400.0,0.00018833,2]
[377938911,1754617838833,-1567.41,0.00018833,2]
[377938912,1754617838843,-400.0,0.00018833,2]
[377938913,1754617838852,-400.0,0.00018833,2]
[377938914,1754617838862,-400.0,0.00018833,2]
[377938915,1754617838871,-400.0,0.00018833,2]
[377938916,1754617838882,-400.0,0.00018833,2]
[377938917,1754617838892,-400.0,0.00018833,2]
[377938918,1754617838901,-565.64,0.00018833,2]
[377938919,1754617838911,-400.0,0.00018833,2]
[377938920,1754617838921,-594.58,0.00018833,2]
[377938921,1754617838931,-222.1966503,0.00018833,2]
[377938922,1754617838940,-400.0,0.00018833,2]
[377938923,1754617838949,-400.0,0.00018833,2]
[377938924,1754617838959,-2102.33,0.00018833,2]
[377938925,1754617838968,-400.0,0.00018833,2]
[377938926,1754617838979,-400.0,0.00018833,2]
[377938927,1754617838988,-400.0,0.00018833,2]
[377938928,1754617838998,-400.0,0.00018833,2]
[377938929,1754617839009,-400.0,0.00018833,2]
[377938930,1754617839018,-676.64,0.00018833,2]
[377938931,1754617839027,-684.73,0.00018833,2]
[377938932,1754617839037,-768.25,0.00018833,2]
[377938933,1754617839046,-615.55,0.00018833,2]
[377938934,1754617839055,-400.0,0.00018833,2]
[377938935,1754617839064,-400.0,0.00018833,2]
[377938936,1754617839074,-400.0,0.00018833,2]
[377938937,1754617839084,-715.62,0.00018833,2]
[377938938,1754617839093,-400.0,0.00018833,2]
[377938939,1754617839103,-400.0,0.00018833,2]
[377938940,1754617839112,-756.47,0.00018833,2]
[377938941,1754617839123,-806.8,0.00018833,2]
[377938942,1754617839132,-858.3,0.00018833,2]
[377938943,1754617839142,-1161.32,0.00018833,2]
[377938944,1754617839152,-512.61,0.00018833,2]
[377938945,1754617839162,-400.0,0.00018833,2]
[377938946,1754617839173,-400.0,0.00018833,2]
[377938947,1754617839183,-400.0,0.00018833,2]
[377938948,1754617839192,-400.0,0.00018833,2]
[377938949,1754617839202,-400.0,0.00018833,2]
[377938950,1754617839212,-400.0,0.00018833,2]
[377938951,1754617839222,-870.66,0.00018833,2]
[377938952,1754617839232,-400.0,0.00018833,2]
[377938953,1754617839242,-400.0,0.00018833,2]
[377938954,1754617839251,-848.09,0.00018833,2]
[377938955,1754617839260,-400.0,0.00018833,2]
[377938956,1754617839269,-450.28,0.00018833,2]
[377938957,1754617839280,-524.2,0.00018833,2]
[377938958,1754617839289,-400.0,0.00018833,2]
[377938959,1754617839300,-400.0,0.00018833,2]
[377938960,1754617839310,-490.36,0.00018833,2]
[377938961,1754617839320,-400.0,0.00018833,2]
[377938962,1754617839329,-916.71,0.00018833,2]
[377938963,1754617839339,-400.0,0.00018833,2]
[377938964,1754617839348,-400.0,0.00018833,2]
[377938965,1754617839357,-400.0,0.00018833,2]
[377938966,1754617839366,-400.0,0.00018833,2]
[377938967,1754617839376,-400.0,0.00018833,2]
[377938968,1754617839386,-555.23,0.00018833,2]
[377938969,1754617839396,-400.0,0.00018833,2]
[377938970,1754617839406,-400.0,0.00018833,2]
[377938971,1754617839416,-428.73,0.00018833,2]
[377938972,1754617839425,-400.0,0.00018833,2]
[377938973,1754617839436,-400.0,0.00018833,2]
[377938974,1754617839445,-1030.82,0.00018833,2]
[377938975,1754617839455,-470.9,0.00018833,2]
[377938976,1754617839465,-521.89,0.00018833,2]
[377938977,1754617839474,-963.01,0.00018833,2]
[377938978,1754617839484,-400.0,0.00018833,2]
[377938979,1754617839495,-400.0,0.00018833,2]
[377938980,1754617839505,-424.31,0.00018833,2]
[377938981,1754617839515,-426.02,0.00018833,2]
[377938982,1754617839526,-400.0,0.00018833,2]
[377938983,1754617839536,-826.8,0.00018833,2]
[377938984,1754617839545,-400.0,0.00018833,2]
[377938985,1754617839556,-400.0,0.00018833,2]
[377938986,1754617839567,-400.0,0.00018833,2]
[377938987,1754617839577,-470.97,0.00018833,2]
[377938988,1754617839586,-1477.45,0.00018833,2]
[377938989,1754617839596,-479.48,0.00018833,2]
[377938990,1754617839605,-400.0,0.00018833,2]
[377938991,1754617839615,-400.0,0.00018833,2]
[377938992,1754617839625,-400.0,0.00018833,2]
[377938993,1754617839635,-400.0,0.00018833,2]
[377938994,1754617839645,-400.0,0.00018833,2]
[377938995,1754617839654,-400.0,0.00018833,2]
[377938996,1754617839665,-400.0,0.00018833,2]
[377938997,1754617839675,-400.0,0.00018833,2]
[377938998,1754617839685,-400.0,0.00018833,2]
[377938999,1754617839696,-400.0,0.00018833,2]
[377939000,1754617839706,-400.0,0.00018833,2]
[377939001,1754617839717,-1443.91,0.00018833,2]
[377939002,1754617839728,-400.0,0.00018833,2]
[377939003,1754617839737,-400.0,0.00018833,2]
[377939004,1754617839747,-400.0,0.00018833,2]
[377939005,1754617839758,-400.0,0.00018833,2]
[377939006,1754617839768,-400.0,0.00018833,2]
[377939007,1754617839777,-400.0,0.00018833,2]
[377939008,1754617839787,-400.0,0.00018833,2]
[377939009,1754617839797,-400.0,0.00018833,2]
[377939010,1754617839806,-833.17,0.00018833,2]
[377939011,1754617839816,-536.12,0.00018833,2]
[377939012,1754617839826,-400.0,0.00018833,2]
[377939013,1754617839836,-2500.0,0.00018838,3]
[377939014,1754617839845,-457.55740054,0.00018838,3]
[377939015,1754617839857,-211.58213282,0.00018838,3]
[377939016,1754617839867,-22033.5089886,0.0001884,2]
[377939017,1754617839877,-658.47139036,0.00018844,2]
[377939018,1754617839887,-2500.0,0.00018847,3]
[377939019,1754617839898,-2500.0,0.00018856,3]
[377939020,1754617839908,-22033.5089886,0.0001886,2]
[377939021,1754617839918,-658.47139036,0.00018863,2]
[377939022,1754617839927,-500.0,0.00018864,2]
[377939023,1754617839937,-2500.0,0.00018865,3]
[377939024,1754617839946,-501.96380063,0.00018873,2]
[377939025,1754617839956,-500.0,0.00018873,2]
[377939026,1754617839965,-503.56386061,0.00018873,2]
[377939027,1754617839974,-2500.0,0.00018874,3]
[377939028,1754617839984,-161.0,0.00018877,2]
[377939029,1754617839993,-22033.5089886,0.0001888,2]
[377939030,1754617840003,-658.47139036,0.00018881,2]
[377939031,1754617840012,-2500.0,0.00018882,3]
[377939032,1754617840021,-1156.79,0.00018889,2]
[377939033,1754617840032,-2500.0,0.00018891,3]
[377939034,1754617840042,-1316.2,0.00018899,2]
[377939035,1754617840054,-780.8,0.00018899,2]
[377939036,1754617840066,-1331.39,0.00018899,2]
[377939037,1754617840076,-1844.37,0.00018899,2]
[377939038,1754617840085,-13716.97,0.00018899,2]
[377939039,1754617840095,-1074.69,0.00018899,2]
[377939040,1754617840105,-960.35,0.00018899,2]
[377939041,1754617840114,-175.24602818,0.00018899,2]
[377939042,1754617840124,-209.84113747,0.00018899,2]
[377939043,1754617840134,-400.0,0.00018899,2]
[377939044,1754617840143,-400.0,0.00018899,2]
[377939045,1754617840153,-1086.74,0.00018899,2]
[377939046,1754617840163,-1277.89,0.00018899,2]
[377939047,1754617840173,-400.0,0.00018899,2]
[377939048,1754617840184,-583.82,0.00018899,2]
[377939049,1754617840195,-1979.79,0.00018899,2]
[377939050,1754617840208,-464.7965,0.000189,2]
[377939051,1754617840222,-170.9619267,0.000189,2]
[377939052,1754617840232,-1416.25386006,0.000189,2]
[377939053,1754617840242,-159.16060079,0.000189,2]
[377939054,1754617840252,-2500.0,0.000189,3]
[377939055,1754617840261,-933.78,0.000189,2]
[377939056,1754617840271,-200.0,0.000189,6]
[377939057,1754617840281,-22033.5089886,0.000189,2]
[377939058,1754617840291,-2388.09720308,0.000189,2]
[377939059,1754617840302,-658.47139036,0.000189,2]
[377939060,1754617840311,-185.49623804,0.000189,2]
[377939061,1754617840321,-500.0,0.00018919,2]
[377939062,1754617840332,-500.0,0.00018973,2]
[377939063,1754617840342,-500.0,0.00018973,2]
[377939064,1754617840523,-500.0,0.00018974,2]
[377939065,1754617840544,-181.27839627,0.00018986,2]
[377939066,1754617840554,-152.50170702,0.00018986,2]
[377939067,1754617840564,-400.0,0.00018997,2]
[377939068,1754617840576,-800.92,0.00018997,2]
[377939069,1754617840586,-1635.99,0.00018997,2]
[377939070,1754617840595,-601.47,0.00018997,2]
[377939071,1754617840605,-1139.89,0.00018997,2]
[377939072,1754617840615,-958.55,0.00018997,2]
[377939073,1754617840624,-1618.11,0.00018997,2]
[377939074,1754617840633,-400.0,0.00018997,2]
[377939075,1754617840643,-825.89,0.00018997,2]
[377939076,1754617840652,-400.0,0.00018997,2]
[377939077,1754617840661,-875.28,0.00018997,2]
[377939078,1754617840670,-1218.87,0.00018997,2]
[377939079,1754617840680,-759.94,0.00018997,2]
[377939080,1754617840689,-1149.14,0.00018997,2]
[377939081,1754617840699,-1163.22,0.00018997,2]
[377939082,1754617840708,-400.0,0.00018997,2]
[377939083,1754617840717,-400.0,0.00018997,2]
[377939084,1754617840727,-400.0,0.00018997,2]
[377939085,1754617840737,-1848.43,0.00018997,2]
[377939086,1754617840747,-1344.08,0.00018997,2]
[377939087,1754617840757,-400.0,0.00018997,2]
[377939088,1754617840767,-1381.63,0.00018997,2]
[377939089,1754617840778,-848.3,0.00018997,2]
[377939090,1754617840787,-528.98,0.00018997,2]
[377939091,1754617840798,-2400.45,0.00018997,2]
[377939092,1754617840808,-500.0,0.00018997,2]
[377939093,1754617840819,-423.57,0.00018997,2]
[377939094,1754617840828,-819.28,0.00018997,2]
[377939095,1754617840838,-1117.67,0.00018997,2]
[377939096,1754617840847,-1037.47,0.00018998,2]
[377939097,1754617840857,-881.15,0.00018998,2]
[377939098,1754617840867,-400.0,0.00018998,2]
[377939099,1754617840877,-400.0,0.00018998,2]
[377939100,1754617840887,-701.05,0.00018998,2]
[377939101,1754617840896,-1390.62,0.00018998,2]
[377939102,1754617840906,-1260.57,0.00018998,2]
[377939103,1754617840916,-2782.97,0.00018998,2]
[377939104,1754617840925,-400.0,0.00018998,2]
[377939105,1754617840935,-806.7,0.00018998,2]
[377939106,1754617840944,-2065.92,0.00018998,2]
[377939107,1754617840954,-776.04,0.00018998,2]
[377939108,1754617840963,-806.16,0.00018998,2]
[377939109,1754617840973,-1128.27,0.00018998,2]
[377939110,1754617840983,-997.7,0.00018998,2]
[377939111,1754617840992,-873.97,0.00018998,2]
[377939112,1754617841002,-882.96,0.00018998,2]
[377939113,1754617841012,-400.0,0.00018998,2]
[377939114,1754617841022,-787.88,0.00018998,2]
[377939115,1754617841031,-710.72,0.00018998,2]
[377939116,1754617841041,-400.0,0.00018998,2]
[377939117,1754617841050,-400.0,0.00018998,2]
[377939118,1754617841059,-866.77,0.00018998,2]
[377939119,1754617841069,-713.86,0.00018998,2]
[377939120,1754617841079,-573.41,0.00018998,2]
[377939121,1754617841088,-1452.64,0.00018998,2]
[377939122,1754617841098,-786.25,0.00018998,2]
[377939123,1754617841107,-1056.37,0.00018998,2]
[377939124,1754617841116,-2122.03,0.00018998,2]
[377939125,1754617841126,-759.66,0.00018998,2]
[377939126,1754617841135,-787.77,0.00018998,2]
[377939127,1754617841144,-1282.97,0.00018998,2]
[377939128,1754617841153,-1076.23,0.00018998,2]
[377939129,1754617841162,-528.08,0.00018998,2]
[377939130,1754617841171,-1024.48,0.00018998,2]
[377939131,1754617841181,-400.0,0.00018998,2]
[377939132,1754617841191,-761.61,0.00018998,2]
[377939133,1754617841201,-761.61,0.00018998,2]
[377939134,1754617841213,-1033.26,0.00018998,2]
[377939135,1754617841222,-687.29,0.00018998,2]
[377939136,1754617841231,-738.22,0.00018998,2]
[377939137,1754617841241,-400.0,0.00018998,2]
[377939138,1754617841252,-500.0,0.00018998,2]
[377939139,1754617841261,-706.48,0.00018998,2]
[377939140,1754617841271,-1724.54,0.00018998,2]
[377939141,1754617841282,-875.95,0.00018998,2]
[377939142,1754617841291,-1046.26,0.00018998,2]
[377939143,1754617841301,-400.0,0.00018998,2]
[377939144,1754617841310,-499.05,0.00018998,2]
[377939145,1754617841320,-615.69,0.00018998,2]
[377939146,1754617841329,-400.0,0.00018998,2]
[377939147,1754617841338,-717.46,0.00018998,2]
[377939148,1754617841348,-713.98,0.00018998,2]
[377939149,1754617841358,-467.77,0.00018998,2]
[377939150,1754617841367,-402.29,0.00018998,2]
[377939151,1754617841377,-400.0,0.00018998,2]
[377939152,1754617841387,-400.0,0.00018998,2]
[377939153,1754617841396,-516.43,0.00018998,2]
[377939154,1754617841406,-1769.35,0.00018998,2]
[377939155,1754617841416,-400.0,0.00018998,2]
[377939156,1754617841425,-446.76,0.00018998,2]
[377939157,1754617841435,-1316.91,0.00018998,2]
[377939158,1754617841445,-952.19,0.00018998,2]
[377939159,1754617841454,-753.72,0.00018998,2]
[377939160,1754617841464,-400.0,0.00018998,2]
[377939161,1754617841474,-400.0,0.00018998,2]
[377939162,1754617841483,-1541.06,0.00018998,2]
[377939163,1754617841493,-400.0,0.00018998,2]
[377939164,1754617841503,-400.0,0.00018998,2]
[377939165,1754617841512,-696.28,0.00018998,2]
[377939166,1754617841522,-188488.96150204,0.00018999,7]
[377939167,1754617841532,-1360.36302506,0.00018999,2]
[377939168,1754617841541,-895.73,0.00018999,2]
[377939169,1754617841551,-814.3,0.00018999,2]
[377939170,1754617841560,-747.09,0.00018999,2]
[377939171,1754617841570,-780.94,0.00018999,2]
[377939172,1754617841579,-856.75,0.00018999,2]
[377939173,1754617841589,-400.0,0.00018999,2]
[377939174,1754617841599,-1753.76,0.00018999,2]
[377939175,1754617841608,-778.01,0.00018999,2]
[377939176,1754617841617,-462.46,0.00018999,2]
[377939177,1754617841627,-1392.03,0.00018999,2]
[377939178,1754617841638,-400.0,0.00018999,2]
[377939179,1754617841648,-400.0,0.00018999,2]
[377939180,1754617841658,-467.87,0.00018999,2]
[377939181,1754617841668,-581.74,0.00018999,2]
[377939182,1754617841679,-1184.72,0.00018999,2]
[377939183,1754617841688,-711.15,0.00018999,2]
[377939184,1754617841697,-1241.18,0.00018999,2]
[377939185,1754617841708,-400.0,0.00018999,2]
[377939186,1754617841719,-788.55,0.00018999,2]
[377939187,1754617841730,-400.0,0.00018999,2]
[377939188,1754617841739,-400.0,0.00018999,2]
[377939189,1754617841748,-503.29,0.00018999,2]
[377939190,1754617841758,-1065.84,0.00018999,2]
[377939191,1754617841768,-1730.74,0.00018999,2]
[377939192,1754617841777,-461.26,0.00018999,2]
[377939193,1754617841786,-695.06,0.00018999,2]
[377939194,1754617841796,-400.0,0.00018999,2]
[377939195,1754617841805,-500.0,0.00018999,2]
[377939196,1754617841815,-615.93978136,0.00018999,2]
[377939197,1754617841824,-805.13,0.00018999,2]
[377939198,1754617841835,-1297.49,0.00018999,2]
[377939199,1754617841844,-400.0,0.00018999,2]
[377939200,1754617841854,-1039.68,0.00018999,2]
[377939201,1754617841863,-457.55740054,0.00018999,7]
[377939202,1754617841873,-892.18,0.00018999,2]
[377939203,1754617841883,-525.9259127,0.00018999,2]
[377939204,1754617841892,-720.3,0.00018999,2]
[377939205,1754617841902,-400.0,0.00018999,2]
[377939206,1754617841911,-761.47,0.00018999,2]
[377939207,1754617841920,-400.0,0.00018999,2]
[377939208,1754617841930,-400.0,0.00018999,2]
[377939209,1754617841940,-1333.28,0.00018999,2]
[377939210,1754617841949,-452.0,0.00018999,2]
[377939211,1754617841959,-421.45,0.00018999,2]
[377939212,1754617841968,-396.6689919,0.00018999,2]